bitfinex/quotes_SOLUSD_20250313
["timestamp","ask_amount","ask_price","bid_price","bid_amount"]
[1741832186901,23.30028036,127.22,127.17,0.063]
[1741832187101,18.64964886,127.24,127.19,28.36688036]
[1741832187288,21.79308036,127.27,127.22,21.73008036]
[1741832187487,0.063,127.27,127.23,21.73008036]
[1741832187684,18.71264886,127.27,127.23,21.73008036]
[1741832187884,21.73008036,127.26,127.22,20.0]
[1741832188198,21.73008036,127.25,127.2,21.73008036]
[1741832189002,21.73008036,127.23,127.19,6.6368]
[1741832189507,21.73008036,127.22,127.19,6.6368]
[1741832189691,40.37972922,127.23,127.19,6.6368]
[1741832190093,48.23962922,127.23,127.19,6.6368]
[1741832191101,40.37972922,127.23,127.19,6.6368]
[1741832191411,29.58938036,127.24,127.19,6.6368]
[1741832191698,21.73008036,127.24,127.19,36.22888036]
[1741832191905,40.37972922,127.25,127.2,21.73008036]
[1741832192281,18.64964886,127.26,127.21,13.91261377]
[1741832192886,18.64964886,127.26,127.22,13.91261377]
[1741832193815,18.64964886,127.26,127.22,21.77281377]
[1741832194314,18.64964886,127.26,127.22,29.59450603]
[1741832194681,29.65460603,127.27,127.24,21.73430603]
[1741832194682,0.063,127.27,127.24,21.73430603]
[1741832194876,0.063,127.27,127.26,21.73430603]
[1741832195519,0.063,127.27,127.25,21.73430603]
[1741832195809,0.063,127.27,127.25,29.59220603]
[1741832196187,0.063,127.27,127.25,21.73430603]
[1741832196399,0.063,127.27,127.25,29.59250603]
[1741832196813,0.063,127.27,127.25,21.73430603]
[1741832198709,0.063,127.27,127.25,29.59270603]
[1741832199584,0.063,127.27,127.21,0.14216157]
[1741832199585,21.73430603,127.26,127.2,6.1547]
[1741832199785,21.73430603,127.24,127.2,6.1547]
[1741832199997,40.38395489,127.22,127.19,0.03]
[1741832200219,21.73430603,127.22,127.19,0.03]
[1741832200916,18.64964886,127.21,127.19,0.03]
[1741832202422,26.51064886,127.21,127.19,0.03]
[1741832202587,21.73430603,127.2,127.19,0.03]
[1741832204093,29.59590603,127.2,127.19,0.03]
[1741832204708,48.24555489,127.2,127.19,0.03]
[1741832205793,48.24555489,127.2,127.19,0.0001]
[1741832206406,70.26418406,127.2,127.19,0.0001]
[1741832208208,48.52987803,127.2,127.19,0.0001]
[1741832209326,70.26418406,127.2,127.19,0.0001]
[1741832209498,137.6069,127.15,127.13,0.03]
[1741832209698,18.64964886,127.16,127.13,0.03]
[1741832210710,7.8616,127.2,127.13,21.76430603]
[1741832210912,40.38395489,127.19,127.14,21.73430603]
[1741832211307,40.38395489,127.19,127.14,29.59950603]
[1741832211510,48.24635489,127.19,127.14,21.73430603]
[1741832212921,40.38395489,127.19,127.14,20.92430603]
[1741832213117,40.38395489,127.19,127.14,28.78950603]
[1741832214129,26.51184886,127.19,127.13,21.76430603]
[1741832214311,48.24615489,127.19,127.13,21.76430603]
[1741832215221,18.64964886,127.17,127.13,21.76430603]
[1741832215425,18.64964886,127.17,127.13,0.03]
[1741832216420,26.51324886,127.17,127.13,0.03]
[1741832216918,48.24755489,127.17,127.13,0.03]
[1741832217525,18.64964886,127.15,127.13,0.03]
[1741832218022,26.51464886,127.15,127.13,0.03]
[1741832218408,48.24895489,127.15,127.13,0.03]
[1741832218819,21.73430603,127.14,127.13,0.03]
[1741832219935,48.24895489,127.15,127.13,0.03]
[1741832220109,29.59840603,127.16,127.13,0.03]
[1741832220310,29.59790603,127.17,127.13,0.03]
[1741832220615,40.38395489,127.16,127.13,0.03]
[1741832221610,21.73430603,127.14,127.13,0.03]
[1741832221821,40.52611646,127.14,127.13,0.03]
[1741832222215,48.39141646,127.14,127.13,0.03]
[1741832224223,18.64964886,127.14,127.13,0.03]
[1741832224422,29.59900603,127.16,127.13,0.03]
[1741832224725,18.64964886,127.15,127.13,0.03]
[1741832225414,7.8637,127.17,127.13,6.0477]
[1741832225415,18.64964886,127.17,127.13,6.0477]
[1741832225722,29.65900603,127.2,127.15,21.73430603]
[1741832225927,29.65900603,127.2,127.13,7.657]
[1741832225928,21.73430603,127.19,127.14,21.73430603]
[1741832226112,18.64964886,127.18,127.14,21.73430603]
[1741832226308,26.51254886,127.18,127.14,21.73430603]
[1741832226536,48.24685489,127.18,127.13,7.657]
[1741832226828,21.73430603,127.16,127.13,6.0477]
[1741832227633,21.73430603,127.19,127.14,21.73430603]
[1741832227805,18.64964886,127.18,127.14,21.73430603]
[1741832228105,21.79730603,127.2,127.14,21.73430603]
[1741832228306,18.64964886,127.19,127.15,21.73430603]
[1741832228522,26.51184886,127.19,127.14,21.73430603]
[1741832228926,21.79730603,127.2,127.15,21.73430603]
[1741832229232,0.063,127.2,127.16,21.73430603]
[1741832229543,29.65910603,127.2,127.15,21.73430603]
[1741832230013,0.063,127.2,127.15,21.73430603]
[1741832230212,29.65900603,127.2,127.15,21.73430603]
[1741832230730,0.063,127.2,127.16,21.73430603]
[1741832230927,7.9247,127.2,127.16,21.73430603]
[1741832231126,29.65900603,127.2,127.15,21.73430603]
[1741832231425,40.38395489,127.19,127.14,7.18]
[1741832231629,21.73430603,127.17,127.13,6.0477]
[1741832231831,18.64964886,127.16,127.13,6.0477]
[1741832232430,18.64964886,127.17,127.13,27.78200603]
[1741832232609,29.65900603,127.2,127.15,21.73430603]
[1741832232810,7.9247,127.2,127.15,21.73430603]
[1741832233010,7.9247,127.2,127.16,21.73430603]
[1741832233433,0.063,127.2,127.16,21.73430603]
[1741832233909,29.65890603,127.2,127.14,21.73430603]
[1741832234112,29.65890603,127.2,127.15,21.73430603]
[1741832234529,18.933972,127.15,127.13,0.03]
[1741832234721,137.67,127.12,127.1,6.6284]
[1741832234919,21.73430603,127.13,127.1,6.6284]
[1741832236033,18.64964886,127.15,127.1,6.6284]
[1741832236034,21.73430603,127.15,127.1,6.6284]
[1741832236236,21.73430603,127.15,127.1,28.36270603]
[1741832236414,7.8659,127.13,127.1,6.6284]
[1741832237017,18.64964886,127.13,127.1,6.6284]
[1741832237220,21.73430603,127.13,127.08,0.03]
[1741832237416,21.73430603,127.13,127.08,21.76430603]
[1741832238130,40.38395489,127.14,127.09,21.73430603]
[1741832238322,26.51504886,127.14,127.09,21.73430603]
[1741832238529,18.64964886,127.13,127.09,21.73430603]
[1741832238843,18.64964886,127.13,127.08,21.76430603]
[1741832239341,29.59910603,127.15,127.09,21.73430603]
[1741832239529,18.64964886,127.14,127.09,21.73430603]
[1741832239725,18.64964886,127.14,127.08,7.8988]
[1741832239938,21.73430603,127.14,127.09,21.73430603]
[1741832240439,21.73430603,127.14,127.08,21.76430603]
[1741832240744,0.063,127.13,127.09,21.73430603]
[1741832240941,0.063,127.13,127.08,7.899]
[1741832241124,0.063,127.13,127.09,21.73430603]
[1741832241851,21.79730603,127.13,127.08,21.76430603]
[1741832242025,21.79730603,127.13,127.11,20.0]
[1741832242223,18.71264886,127.13,127.11,20.0]
[1741832242431,18.71264886,127.13,127.08,21.76430603]
[1741832242736,48.25045489,127.12,127.08,0.03]
[1741832243446,21.73430603,127.11,127.08,0.03]
[1741832243635,48.25045489,127.12,127.08,0.03]
[1741832244522,18.64964886,127.12,127.08,21.76430603]
[1741832244941,48.25065489,127.12,127.08,0.03]
[1741832245169,26.51634886,127.12,127.08,0.03]
[1741832245327,26.51634886,127.12,127.08,21.76430603]
[1741832245328,18.64964886,127.12,127.08,21.76430603]
[1741832246540,7.8672,127.11,127.08,21.76430603]
[1741832246750,7.8672,127.11,127.08,0.03]
[1741832247130,26.51634886,127.12,127.08,0.03]
[1741832248442,48.25065489,127.12,127.08,0.03]
[1741832249659,18.64964886,127.1,127.08,0.03]
[1741832250726,7.8684,127.09,127.08,0.03]
[1741832251759,26.51804886,127.09,127.08,0.03]
[1741832254554,0.34732314,127.13,127.08,0.03]
[1741832254555,0.063,127.13,127.09,7.9066]
[1741832254733,0.063,127.13,127.11,21.73430603]
[1741832255056,0.063,127.13,127.12,21.73430603]
[1741832255728,0.063,127.13,127.12,29.60080603]
[1741832256550,0.063,127.13,127.12,29.88512917]
[1741832256929,0.063,127.13,127.12,7.8665]
[1741832257144,0.063,127.13,127.12,29.60080603]
[1741832257453,0.063,127.13,127.12,29.88512917]
[1741832258551,0.063,127.13,127.12,21.73430603]
[1741832259237,0.063,127.13,127.12,29.60080603]
[1741832259439,0.063,127.13,127.12,21.73430603]
[1741832263666,0.063,127.13,127.11,21.73430603]
[1741832264271,0.063,127.13,127.12,21.73430603]
[1741832264773,0.063,127.13,127.11,21.73430603]
[1741832266183,0.063,127.13,127.12,21.73430603]
[1741832266665,0.063,127.13,127.11,21.73430603]
[1741832267579,0.063,127.13,127.09,28.05910603]
[1741832268378,0.063,127.13,127.08,21.76430603]
[1741832269477,18.64964886,127.12,127.08,21.76430603]
[1741832270057,21.73430603,127.1,127.08,0.03]
[1741832270369,40.38395489,127.09,127.08,0.03]
[1741832270881,63.92428406,127.09,127.08,0.0001]
[1741832271581,137.6399,127.04,127.03,0.03]
[1741832271788,18.64964886,127.05,127.03,0.03]
[1741832273094,40.38395489,127.04,127.03,0.03]
[1741832273263,18.64964886,127.04,127.03,0.03]
[1741832273592,18.64964886,127.05,127.03,0.03]
[1741832274088,21.73430603,127.05,127.03,0.03]
[1741832274981,18.64964886,127.04,127.03,0.03]
[1741832275486,21.73430603,127.05,127.03,0.03]
[1741832275689,18.64964886,127.05,127.03,0.03]
[1741832277871,18.64964886,127.04,127.03,0.03]
[1741832278970,18.64964886,127.06,127.03,0.03]
[1741832280471,40.38395489,127.06,127.03,0.03]
[1741832280675,48.25425489,127.06,127.03,0.03]
[1741832281374,40.38395489,127.06,127.03,0.03]
[1741832281892,18.64964886,127.04,127.03,0.03]
[1741832285799,26.52114886,127.04,127.03,0.03]
[1741832285985,18.64964886,127.04,127.03,0.03]
[1741832286881,26.52114886,127.04,127.03,0.03]
[1741832287496,18.64964886,127.04,127.03,0.03]
[1741832287801,26.52114886,127.04,127.03,0.03]
[1741832288493,48.25545489,127.04,127.03,0.03]
[1741832289275,48.53977803,127.04,127.03,0.03]
[1741832292706,134.7419574,127.0,126.98,21.73430603]
[1741832292897,48.53977803,127.04,126.98,21.73430603]
[1741832293095,18.64964886,127.04,127.0,29.60790603]
[1741832293279,18.64964886,127.04,127.01,21.73430603]
[1741832293671,18.64964886,127.04,127.0,29.60790603]
[1741832294089,18.64964886,127.04,127.01,21.73430603]
[1741832294784,29.60510603,127.06,127.01,21.73430603]
[1741832294989,18.64964886,127.05,127.01,21.73430603]
[1741832295908,48.25495489,127.05,127.0,21.73430603]
[1741832296480,18.64964886,127.03,126.99,41.73430603]
[1741832297317,26.52204886,127.03,126.99,41.73430603]
[1741832297810,18.64964886,127.01,126.97,21.73430603]
[1741832298382,29.60670603,127.03,126.97,21.73430603]
[1741832298704,18.64964886,127.02,126.98,0.03]
[1741832299113,26.52274886,127.02,126.98,0.03]
[1741832299416,48.25705489,127.02,126.98,0.03]
[1741832299618,46.20464886,127.02,126.98,0.03]
[1741832299914,40.38395489,126.99,126.98,0.03]
[1741832300212,21.73430603,127.01,126.98,0.03]
[1741832300388,18.64964886,127.0,126.98,0.03]
[1741832300706,21.73430603,127.0,126.98,0.03]
[1741832300912,40.38395489,127.01,126.98,0.03]
[1741832301113,7.8715,127.04,126.98,21.76430603]
[1741832301285,21.73430603,127.03,126.98,21.76430603]
[1741832301487,18.64964886,127.02,126.98,21.76430603]
[1741832301699,18.64964886,127.01,126.98,0.03]
[1741832301900,21.73430603,127.02,126.98,21.76430603]
[1741832302191,18.64964886,127.02,126.98,0.03]
[1741832302410,18.64964886,127.02,126.98,21.76430603]
[1741832302792,7.8715,127.04,126.98,21.76430603]
[1741832303116,18.64964886,127.03,126.99,21.73430603]
[1741832303490,21.73430603,127.05,127.0,21.73430603]
[1741832303810,21.73430603,127.05,126.99,1.611]
[1741832304021,18.64964886,127.05,127.01,21.73430603]
[1741832304189,0.063,127.08,127.02,21.73430603]
[1741832304390,0.063,127.08,127.05,21.73430603]
[1741832304604,0.063,127.08,127.04,6.1525]
[1741832304605,0.063,127.08,127.06,21.73430603]
[1741832305994,0.063,127.08,127.07,21.73430603]
[1741832306624,0.063,127.08,127.06,21.73430603]
[1741832308012,0.063,127.08,127.06,29.60450603]
[1741832308210,0.063,127.08,127.06,21.73430603]
[1741832309618,0.063,127.08,127.06,29.60440603]
[1741832309817,0.063,127.08,127.07,21.73430603]
[1741832310016,0.063,127.08,127.07,28.91430603]
[1741832310217,0.063,127.08,127.07,29.19862917]
[1741832310521,0.063,127.08,127.07,42.1128384]
[1741832310822,0.063,127.08,127.07,35.54660603]
[1741832311617,0.063,127.08,127.05,23.32330603]
[1741832311824,0.063,127.08,127.05,31.19420603]
[1741832311991,0.063,127.08,127.05,9.4599]
[1741832312196,0.063,127.08,127.06,21.73430603]
[1741832312397,0.063,127.08,127.05,23.32330603]
[1741832312696,0.063,127.08,127.05,21.73430603]
[1741832313421,0.063,127.08,127.04,35.07200603]
[1741832313606,7.8702,127.06,127.02,23.23770603]
[1741832314297,29.60450603,127.06,127.01,35.26870603]
[1741832314815,7.8702,127.06,127.02,21.73430603]
[1741832315019,7.8698,127.07,127.03,21.73430603]
[1741832315317,18.64964886,127.06,127.03,21.73430603]
[1741832315906,7.9322,127.08,127.04,21.73430603]
[1741832316417,7.9322,127.08,127.03,21.73430603]
[1741832316598,29.66650603,127.08,127.01,21.4076]
[1741832316798,29.66650603,127.08,127.03,21.73430603]
[1741832317519,26.58184886,127.08,127.04,21.73430603]
[1741832317915,18.71264886,127.08,127.04,21.73430603]
[1741832318221,0.063,127.08,127.04,21.73430603]
[1741832318717,0.063,127.08,127.05,21.73430603]
[1741832319222,0.063,127.08,127.05,20.0]
[1741832319825,0.063,127.08,127.04,41.73430603]
[1741832320132,18.71264886,127.08,127.04,20.0]
[1741832321313,18.64964886,127.07,127.01,21.4076]
[1741832321502,18.64964886,127.07,127.02,21.73430603]
[1741832322002,7.8702,127.06,127.02,21.73430603]
[1741832324441,18.64964886,127.05,127.01,28.08870603]
[1741832324607,7.8698,127.07,127.01,14.2276]
[1741832324806,7.8698,127.07,127.02,21.73430603]
[1741832325035,29.60410603,127.07,127.02,21.73430603]
[1741832325417,18.64964886,127.06,127.01,28.08870603]
[1741832326126,40.38395489,127.05,127.0,0.03]
[1741832326308,7.8715,127.04,127.01,20.0]
[1741832326708,26.52074886,127.05,127.01,41.73430603]
[1741832327320,18.64964886,127.04,127.01,20.0]
[1741832328110,26.52124886,127.04,127.01,20.0]
[1741832328527,18.64964886,127.04,127.01,20.0]
[1741832329512,18.64964886,127.04,127.01,41.73430603]
[1741832330719,21.73430603,127.07,127.02,21.73430603]
[1741832330720,18.64964886,127.06,127.02,21.73430603]
[1741832332232,26.52044886,127.06,127.02,21.73430603]
[1741832332610,18.64964886,127.06,127.03,21.73430603]
[1741832333031,26.58314886,127.06,127.02,21.73430603]
[1741832333827,26.58314886,127.06,127.0,0.03]
[1741832333828,23.24090603,127.05,127.0,0.03]
[1741832334035,23.24090603,127.05,127.0,21.76430603]
[1741832334612,31.11230603,127.05,127.0,21.76430603]
[1741832335030,31.11230603,127.05,127.0,0.03]
[1741832337536,50.78950603,127.05,127.0,0.03]
[1741832340219,1.5066,127.05,127.01,21.73430603]
[1741832340936,18.64964886,127.04,127.0,0.03]
[1741832341624,7.8721,127.03,127.0,0.03]
[1741832341828,7.8721,127.03,127.0,21.76430603]
[1741832342132,7.8721,127.03,127.0,0.03]
[1741832342332,7.8721,127.03,127.0,21.76430603]
[1741832343340,26.52134886,127.04,127.0,21.76430603]
[1741832343645,18.64964886,127.04,127.01,21.73430603]
[1741832343842,26.52114886,127.04,127.0,21.76430603]
[1741832344633,0.063,127.06,127.02,21.73430603]
[1741832344833,18.71264886,127.06,127.03,21.73430603]
[1741832345625,26.58304886,127.06,127.02,21.73430603]
[1741832346427,26.58304886,127.06,127.01,21.73430603]
[1741832346627,18.64964886,127.03,127.0,0.03]
[1741832347350,40.38395489,127.04,127.0,0.03]
[1741832347547,1.6317,127.03,127.0,0.03]
[1741832347845,18.64964886,127.02,127.0,0.03]
[1741832348037,26.52234886,127.02,127.0,0.03]
[1741832350060,1.6317,127.03,127.0,0.03]
[1741832350311,20.28134886,127.03,127.0,0.03]
[1741832351253,28.15354886,127.03,127.0,0.03]
[1741832351436,20.28134886,127.03,127.0,0.03]
[1741832351827,28.15354886,127.03,127.0,0.03]
[1741832353136,18.64964886,127.02,127.0,0.03]
[1741832354651,1.6317,127.03,127.0,0.03]
[1741832354853,9.504,127.03,127.0,0.03]
[1741832355431,18.64964886,127.02,127.0,0.03]
[1741832358251,26.52254886,127.02,127.0,0.03]
[1741832359359,18.64964886,127.02,127.0,0.03]
[1741832359539,1.6947,127.03,127.0,0.03]
[1741832359731,18.71264886,127.03,127.0,0.03]
[1741832359936,26.58484886,127.03,127.0,0.03]
[1741832360857,18.71264886,127.03,127.0,0.03]
[1741832361039,0.063,127.03,127.02,21.73430603]
[1741832362957,0.063,127.03,127.02,29.60700603]
[1741832363840,0.063,127.03,127.02,21.73430603]
[1741832364740,0.063,127.03,127.02,29.60700603]
[1741832367036,0.063,127.03,127.02,21.73430603]
[1741832368076,0.063,127.03,127.02,29.60700603]
[1741832368483,0.063,127.03,127.02,21.73430603]
[1741832368973,0.063,127.03,127.02,29.60700603]
[1741832369477,0.063,127.03,127.02,29.89132917]
[1741832369769,0.063,127.03,127.02,51.6256352]
[1741832369947,0.063,127.03,127.02,29.60700603]
[1741832370269,0.063,127.03,127.02,21.73430603]
[1741832370851,0.0001,127.03,127.02,43.7529352]
[1741832371053,0.063,127.08,127.06,0.28432314]
[1741832371255,1.7083,127.13,127.07,29.0564676]
[1741832371457,1.7083,127.13,127.1,21.73430603]
[1741832371975,0.063,127.13,127.1,21.73430603]
[1741832372548,7.929,127.13,127.09,21.73430603]
[1741832373069,18.64964886,127.12,127.08,21.73430603]
[1741832373261,18.64964886,127.12,127.07,28.91430603]
[1741832373876,26.51624886,127.12,127.08,21.73430603]
[1741832374656,26.51624886,127.12,127.07,28.91430603]
[1741832374980,48.25055489,127.12,127.07,21.73430603]
[1741832375564,26.51624886,127.12,127.07,21.73430603]
[1741832375769,26.51624886,127.12,127.08,21.73430603]
[1741832375951,48.25055489,127.12,127.07,21.73430603]
[1741832378174,26.51624886,127.12,127.07,21.73430603]
[1741832379377,48.25055489,127.12,127.07,21.73430603]
[1741832380082,18.64964886,127.09,127.05,41.73430603]
[1741832380289,18.64964886,127.09,127.05,20.0]
[1741832380583,18.64964886,127.07,127.02,20.34441496]
[1741832380761,18.64964886,127.07,127.02,21.12821496]
[1741832381857,18.64964886,127.05,127.0,7.21]
[1741832382079,21.81811496,127.07,127.02,13.94821496]
[1741832382260,7.8699,127.07,127.03,21.79958255]
[1741832386480,40.44923141,127.06,127.01,21.79958255]
[1741832386673,41.97553141,127.06,127.01,21.79958255]
[1741832387286,7.8709,127.05,127.01,21.79958255]
[1741832388688,18.64964886,127.04,127.0,0.03]
[1741832388894,40.44923141,127.04,127.0,20.03]
[1741832390279,7.8721,127.03,127.0,20.03]
[1741832390477,40.44923141,127.02,127.0,0.03]
[1741832390695,42.11073141,127.01,127.0,0.03]
[1741832391695,42.39505455,127.01,127.0,0.03]
[1741832392597,50.26835455,127.01,127.0,0.03]
[1741832395397,137.64,126.97,126.95,21.82958255]
[1741832395577,40.44923141,127.0,126.95,21.82958255]
[1741832396777,48.32353141,127.0,126.95,21.82958255]
[1741832399491,18.64964886,126.98,126.95,0.03]
[1741832400001,40.73355455,126.96,126.95,0.03]
[1741832400304,42.24515455,126.96,126.95,0.03]
[1741832400597,156.31954886,126.91,126.9,0.03]
[1741832400801,18.64964886,126.91,126.9,0.03]
[1741832401301,26.52914886,126.91,126.9,0.03]
[1741832401786,21.79958255,126.93,126.9,0.03]
[1741832402097,18.64964886,126.92,126.9,0.03]
[1741832403590,48.32823141,126.92,126.9,0.03]
[1741832403810,18.64964886,126.92,126.9,0.03]
[1741832405608,48.32823141,126.92,126.9,0.03]
[1741832406114,40.44923141,126.92,126.9,0.03]
[1741832406911,137.67,126.88,126.87,0.03]
[1741832407111,18.933972,126.87,126.77,2.8650426]
[1741832407315,21.79958255,126.84,126.79,21.79958255]
[1741832407522,21.79958255,126.88,126.82,21.79958255]
[1741832407704,18.64964886,126.87,126.83,21.79958255]
[1741832408125,18.64964886,126.87,126.82,28.97958255]
[1741832408349,18.64964886,126.86,126.82,28.97958255]
[1741832408625,18.64964886,126.86,126.82,7.18]
[1741832408842,40.44923141,126.86,126.82,7.18]
[1741832409218,7.881,126.89,126.82,28.97958255]
[1741832409426,21.79958255,126.87,126.82,6.18]
[1741832409919,21.79958255,126.84,126.79,21.79958255]
[1741832410128,40.44923141,126.85,126.79,21.79958255]
[1741832410532,40.44923141,126.85,126.79,28.97958255]
[1741832411115,29.68348255,126.84,126.79,28.97958255]
[1741832411532,40.44923141,126.83,126.79,7.18]
[1741832411695,18.64964886,126.81,126.77,2.8650426]
[1741832412220,18.64964886,126.8,126.77,2.8650426]
[1741832412819,21.79958255,126.83,126.77,24.66462515]
[1741832413104,18.64964886,126.82,126.77,24.66462515]
[1741832413308,48.33453141,126.82,126.77,2.8650426]
[1741832413523,18.64964886,126.8,126.77,2.8650426]
[1741832413907,29.68488255,126.82,126.77,2.8650426]
[1741832414130,18.64964886,126.82,126.78,21.79958255]
[1741832414422,18.64964886,126.82,126.8,0.03]
[1741832414934,18.64964886,126.83,126.8,0.03]
[1741832416008,26.53414886,126.83,126.8,0.03]
[1741832416323,48.33373141,126.83,126.8,0.03]
[1741832416533,26.53414886,126.83,126.8,0.03]
[1741832417913,18.64964886,126.85,126.8,21.82958255]
[1741832419524,48.33273141,126.85,126.8,21.82958255]
[1741832420023,47.83273141,126.85,126.8,21.82958255]
[1741832420434,21.79958255,126.84,126.8,0.03]
[1741832420633,21.79958255,126.83,126.8,0.03]
[1741832420837,21.79958255,126.82,126.8,0.03]
[1741832421131,21.79958255,126.81,126.8,0.03]
[1741832421515,22.08390569,126.84,126.8,0.03]
[1741832421516,21.79958255,126.82,126.8,0.03]
[1741832422137,27.5959,126.83,126.74,7.8896]
[1741832422138,134.8049574,126.77,126.74,7.18]
[1741832422315,21.79958255,126.8,126.74,28.97958255]
[1741832422824,21.79958255,126.81,126.76,21.79958255]
[1741832423020,18.64964886,126.82,126.77,41.79958255]
[1741832423424,40.44923141,126.82,126.77,41.79958255]
[1741832423822,18.64964886,126.82,126.77,41.79958255]
[1741832424032,18.64964886,126.84,126.8,28.21758255]
[1741832424339,40.44923141,126.83,126.77,41.79958255]
[1741832424540,18.64964886,126.81,126.77,41.79958255]
[1741832424919,18.64964886,126.8,126.77,20.0]
[1741832425420,18.64964886,126.8,126.76,13.4929]
[1741832425624,18.64964886,126.79,126.76,13.4929]
[1741832425950,26.53714886,126.79,126.76,13.4929]
[1741832426251,26.53714886,126.79,126.76,6.3129]
[1741832426435,26.53714886,126.79,126.77,0.03]
[1741832426821,18.64964886,126.79,126.77,0.03]
[1741832427537,18.64964886,126.81,126.77,21.82958255]
[1741832428051,18.64964886,126.81,126.77,0.03]
[1741832428052,26.53604886,126.8,126.77,0.03]
[1741832428625,48.33563141,126.8,126.77,0.03]
[1741832433947,18.64964886,126.8,126.77,0.03]
[1741832434129,26.53614886,126.8,126.77,0.03]
[1741832434324,18.64964886,126.8,126.77,0.03]
[1741832435751,48.33563141,126.8,126.77,0.03]
[1741832435946,18.64964886,126.78,126.77,0.03]
[1741832437228,18.64964886,126.79,126.77,0.03]
[1741832438036,18.64964886,126.8,126.77,0.03]
[1741832439930,26.53644886,126.8,126.77,0.03]
[1741832440142,48.33603141,126.8,126.77,0.03]
[1741832440434,0.063,126.86,126.79,21.79958255]
[1741832440748,0.063,126.86,126.83,21.79958255]
[1741832441157,0.063,126.86,126.78,29.14174412]
[1741832441158,18.64964886,126.85,126.81,20.0]
[1741832441339,18.64964886,126.85,126.81,41.79958255]
[1741832441539,18.71264886,126.86,126.81,41.79958255]
[1741832442129,18.71264886,126.86,126.81,49.68528255]
[1741832442328,26.59534886,126.86,126.81,41.79958255]
[1741832442759,48.39493141,126.86,126.81,41.79958255]
[1741832443465,18.71264886,126.86,126.82,21.79958255]
[1741832443832,0.063,126.86,126.82,21.79958255]
[1741832444173,0.063,126.86,126.82,29.68418255]
[1741832444453,0.063,126.86,126.82,21.79958255]
[1741832444661,21.86258255,126.86,126.81,20.0]
[1741832444829,18.64964886,126.85,126.81,41.79958255]
[1741832445256,18.64964886,126.85,126.81,20.0]
[1741832446461,18.64964886,126.85,126.81,49.68528255]
[1741832446659,18.64964886,126.85,126.81,41.79958255]
[1741832446958,0.063,126.86,126.81,41.79958255]
[1741832447171,0.063,126.86,126.85,41.79958255]
[1741832447459,0.063,126.86,126.85,49.26390569]
[1741832447636,0.063,126.93,126.85,49.26390569]
[1741832447975,0.063,126.93,126.89,21.79958255]
[1741832448353,0.063,126.93,126.89,29.68018255]
[1741832448559,0.063,126.93,126.89,21.79958255]
[1741832448887,21.86258255,126.93,126.87,21.79958255]
[1741832449187,18.64964886,126.92,126.87,21.79958255]
[1741832449381,18.64964886,126.91,126.87,21.79958255]
[1741832449888,18.64964886,126.92,126.87,21.79958255]
[1741832450385,21.86258255,126.93,126.89,21.79958255]
[1741832450386,0.063,126.93,126.89,21.79958255]
[1741832450677,18.64964886,126.92,126.88,21.79958255]
[1741832451853,18.64964886,126.92,126.89,21.79958255]
[1741832452256,18.64964886,126.92,126.88,21.79958255]
[1741832453267,7.9414,126.93,126.89,21.79958255]
[1741832453460,7.9414,126.93,126.88,21.79958255]
[1741832454153,40.44923141,126.92,126.86,20.0]
[1741832454380,18.64964886,126.9,126.86,20.0]
[1741832454561,40.44923141,126.9,126.86,20.0]
[1741832454759,40.44923141,126.9,126.85,21.79958255]
[1741832455361,7.8808,126.89,126.85,21.79958255]
[1741832455783,26.52994886,126.9,126.85,21.79958255]
[1741832455984,26.52994886,126.9,126.86,21.79958255]
[1741832456295,21.79958255,126.92,126.87,21.79958255]
[1741832456483,21.86258255,126.93,126.88,21.79958255]
[1741832456671,26.52874886,126.92,126.88,21.79958255]
[1741832457274,29.67868255,126.92,126.87,41.79958255]
[1741832457708,18.64964886,126.91,126.87,41.79958255]
[1741832458098,18.64964886,126.91,126.88,21.79958255]
[1741832458271,18.64964886,126.91,126.87,41.79958255]
[1741832458701,21.79958255,126.92,126.87,41.79958255]
[1741832458888,26.52954886,126.91,126.87,41.79958255]
[1741832460196,26.52954886,126.91,126.86,41.79958255]
[1741832460877,26.52924886,126.91,126.86,21.82958255]